Workbook

Sheet Sheet1
B2: المبيعات
B3: م | C3: الكود | D3: الكمية | E3: الكمية | F3: سعر الوحدة | G3: القيمة | H3: الاجمالى
B4: 1 | C4: MMF001 | D4: جالون دوكو ازرق 4 كيلو كود 2071 | E4: 15 | F4: 156.3876413 | G4: =+E4*F4 -> 2345.814619
B5: 2 | C5: MMF002 | D5: جالون لاكيه اسود كود 392 | E5: 8 | F5: 100.616065 | G5: =+E5*F5 -> 804.9285203 | H5: =+G5+G4 -> 3150.743139
B6: 3 | C6: MMF003 | D6: غيار رولة صغيرة | E6: 10 | F6: 4.003237191 | G6: =+E6*F6 -> 40.03237191 | H6: =+H5+G6 -> 3190.775511
B7: 4 | C7: MMF004 | D7: جالون لاكيه اخضر كود 760 | E7: 2 | F7: 99.53291925 | G7: 199.0658385 | H7: =+H6+G7 -> 3389.84135
B8: 5 | C8: MMF005 | D8: فرشاة دهان 3 بوصة | E8: 4 | F8: 45 | G8: 180 | H8: 3569.84135
B9: 6 | C9: MMF006 | D9: جالون لاكيه احمر كود 659 | E9: 8 | F9: 102.4914286 | G9: 819.9314286 | H9: 4389.772778
B10: 7 | C10: MMF007 | D10: رولة دهان صغيرة | E10: 3 | F10: 10.03527851 | G10: 30.10583554 | H10: 4419.878614
B11: 8 | C11: MMF008 | D11: جركن ثنر - التعاون - مصر للبترول | E11: 19 | F11: 36.01733212 | G11: 684.3293103 | H11: 5104.207924
B12: 9 | C12: MMF009 | D12: جالون لاكيه ابيض 100509 | E12: 4 | F12: 263.3229332 | G12: 1053.291733 | H12: 6157.499657
B13: 10 | C13: MMF010 | D13: جالون لاكيه اصفر كود 223 | E13: 6 | F13: 101.2666667 | G13: 607.6 | H13: 6765.099657
B14: 11 | C14: MMF011 | D14: نبل هيدروليك مقاس 1/4 بوصة 320 بار - سن خارجى | E14: 5 | F14: 9.12 | G14: 45.6 | H14: 6810.699657
B15: 12 | C15: MMF012 | D15: محبس بلية 1/2 بوصة | E15: 2 | F15: 69.36982887 | G15: 138.7396577 | H15: 6949.439314
B16: 13 | C16: MMF013 | D16: محبس بليه 1 بوصة | E16: 2 | F16: 190.95 | G16: 381.9 | H16: 7331.339314
B17: 14 | C17: MMF014 | D17: بكرة تيفلون طول التيفلون 10 متر | E17: 6 | F17: 2.811960105 | G17: 16.87176063 | H17: 7348.211075
B18: 15 | C18: MMF015 | G18: 0 | H18: 7348.211075
B19: 16 | C19: MMF016 | D19: رصاص | E19: 3.7 | F19: 74.90131057 | G19: 277.1348491 | H19: 7625.345924
B20: 17 | C20: MMF017 | D20: Slip - BS-12-30-3", Upper Slip 3/4":7/8" - PN : 31K151R075 | E20: 1 | F20: 2100.79186 | G20: 2100.79186 | H20: 9726.137784
B21: 18 | C21: MMF018 | D21: SLIP_BS1925_UPPER_2.88_7/8 THRU 1" - PN : 31K151M087 | E21: 1 | F21: 2538.712667 | G21: 2538.712667 | H21: 12264.85045
B22: 19 | C22: MMF019 | D22: SLIP_BS125_LOWER_2.88_1 3/8 THRU 1 5/8" - PN : 31K152M137 | E22: 1 | F22: 2539.427059 | G22: 2539.427059 | H22: 14804.27751
B23: 20 | C23: MMF020 | D23: SLIP_BS1225_UPPER_2.88_3/4 THRU 7/8" -- PN : 31K151M075 | E23: 1 | F23: 2538.712667 | G23: 2538.712667 | H23: 17342.99018
B24: 21 | C24: MMF021 | D24: Wrench 36 Inch Ridgid - PN : 31035 - مفتاح استلسون مقاس 36 بوصة | E24: 2 | F24: 3900 | G24: 7800 | H24: 25142.99018
B25: 22 | C25: MMF022 | D25: Dies Insert 3 1/2 Inch Varco 15522-7121-62 | E25: 30 | F25: 124.3636364 | G25: 3730.909091 | H25: 28873.89927
B26: 23 | C26: MMF023 | D26: جوان فلانشه 4 بوصة | E26: 3 | F26: 7.236518284 | G26: 21.70955485 | H26: 28895.60882
B27: 24 | C27: MMF024 | D27: die for tubing power tong - PN : Q12-1-1-12 | E27: 20 | F27: 71.63190184 | G27: 1432.638037 | H27: 30328.24686
B28: 25 | C28: MMF025 | D28: Safety Sling 4 Mm * 60 Cm | E28: 6 | F28: 75 | G28: 450 | H28: 30778.24686
B29: 26 | C29: MMF026 | D29: حبل سيزال - كتان - مقاس 12 مم - 16 مم | E29: 13.15 | F29: 88.92 | G29: 1169.298 | H29: 31947.54486
B30: 27 | C30: MMF027 | D30: Wire Rope 1 Inch (6*19) Iwrc M.b.f : 460 Kn | E30: 1 | F30: 0 | G30: 0 | H30: 31947.54486
B31: 28 | C31: MMF028 | D31: جوان وش طلمبة (غطاء لينر) | E31: 6 | F31: 0 | G31: 0 | H31: 31947.54486
B32: 29 | C32: MMF029 | D32: Piston Rubber Poly 6 Inch | E32: 6 | F32: 0 | G32: 0 | H32: 31947.54486
B33: 30 | C33: MMF030 | G33: 0 | H33: 31947.54486
B34: 31 | C34: MMF031 | D34: كونتاكتور 32 امبير | E34: 1 | F34: 657.6428571 | G34: 657.6428571 | H34: 32605.18772
B35: 32 | C35: MMF032 | D35: نهايات توصيل - كوس نحاس قطر 95 مم | E35: 6 | F35: 11.5 | G35: 69 | H35: 32674.18772
B36: 33 | C36: MMF033 | D36: كونتاكتور LCID 65 | E36: 1 | F36: 1536.658377 | G36: 1536.658377 | H36: 34210.84609
B37: 34 | C37: MMF034 | D37: نهايات توصيل - كوس نحاس قطر 50 مم | E37: 15 | F37: 7 | G37: 105 | H37: 34315.84609
B38: 35 | C38: MMF035 | D38: سيركت بريكير 160 امبير - قاطع تيار 160 امبير | E38: 1 | F38: 1395 | G38: 1395 | H38: 35710.84609
B39: 36 | C39: MMF036 | D39: جلانده PG29كامله بالصاموله | E39: 1 | F39: 0 | G39: 0 | H39: 35710.84609
B40: 37 | C40: MMF037 | D40: عداد تردد ديجيتال 7 × 7 سم | E40: 1 | F40: 450 | G40: 450 | H40: 36160.84609
B41: 38 | C41: MMF038 | D41: لقمة بريزة ماجيك - بتشينو | E41: 4 | F41: 7 | G41: 28 | H41: 36188.84609
B42: 39 | C42: MMF039 | D42: مفتاح تكييف خارج الحائط 26 امبير. | E42: 1 | F42: 55.02987309 | G42: 55.02987309 | H42: 36243.87597
B43: 40 | C43: MMF040 | D43: مفتاح تكييف داخلى المانى 26 امبير | E43: 1 | F43: 65 | G43: 65 | H43: 36308.87597
B44: 41 | C44: MMF041 | D44: مفتاح ثلاثى 32 امبير | E44: 2 | F44: 0 | G44: 0 | H44: 36308.87597
B45: 42 | C45: MMF042 | D45: لمبة ليد 9 وات | E45: 2 | F45: 26.875 | G45: 53.75 | H45: 36362.62597
B46: 43 | C46: MMF043 | D46: كشاف ليد 100 وات | E46: 4 | F46: 741 | G46: 2964 | H46: 39326.62597
B47: 44 | C47: MMF044 | D47: لمبة نيون 60سم | E47: 1 | F47: 0 | G47: 0 | H47: 39326.62597
B48: 45 | C48: MMF045 | D48: لمبه ليد ابيض 120 سم | E48: 23 | F48: 78.66 | G48: 1809.18 | H48: 41135.80597
B49: 46 | C49: MMF046 | D49: فيشة ذكر بلاستيك 220 فولت | E49: 5 | F49: 23.03571429 | G49: 115.1785714 | H49: 41250.98454
B50: 47 | C50: MMF047 | D50: فيشه نتاية بلاستيك 220 فولت | E50: 5 | F50: 22.8 | G50: 114 | H50: 41364.98454
B51: 48 | C51: MMF048 | D51: منظم جهد 8 امبير - PN : P933558P2/L | E51: 1 | F51: 230 | G51: 230 | H51: 41594.98454
B52: 49 | C52: MMF049 | D52: بلجة 16 امبير 3 بول | E52: 3 | F52: 0 | G52: 0 | H52: 41594.98454
B53: 50 | C53: MMF050 | D53: بلجة 32 امبير عادية | E53: 1 | F53: 0 | G53: 0 | H53: 41594.98454
B54: 51 | C54: MMF051 | D54: سيليكتور 3 حركه | E54: 1 | F54: 0 | G54: 0 | H54: 41594.98454
B55: 52 | C55: MMF052 | D55: بلجة كهرباء ضد الانفجار 60 امبير ذكر × نتاية | E55: 1 | F55: 0 | G55: 0 | H55: 41594.98454
B56: 53 | C56: MMF053 | D56: كيس حزام بلاستيك طول 20 سم - 100 قطعة | E56: 1 | F56: 24.47368421 | G56: 24.47368421 | H56: 41619.45822
B57: 54 | C57: MMF054 | D57: كيس حزام بلاستيك طول 37 سم - 100 قطعة | E57: 1 | F57: 45.6375 | G57: 45.6375 | H57: 41665.09572
B58: 55 | C58: MMF055 | D58: Rubber Cable Ho7rn-f 2x2.5 Nero. Round Cable | E58: 30 | F58: 0 | G58: 0 | H58: 41665.09572
B59: 56 | C59: MMF056 | D59: باكو شريط لحام 10 بكرة طول الشريط فى البكرة 10 متر | E59: 1 | F59: 68.99760777 | G59: 68.99760777 | H59: 41734.09333
B60: 57 | C60: MMF057 | D60: Battery 200 A Dry | E60: 2 | F60: 3190.644471 | G60: 6381.288943 | H60: 48115.38227
B61: 58 | C61: MMF058 | D61: كونتاكت امريكى | E61: 3 | F61: 93.77724868 | G61: 281.331746 | H61: 48396.71402
B62: 59 | C62: MMF059 | D62: عداد ساعات تشغيل 12 فولت | E62: 1 | F62: 1539 | G62: 1539 | H62: 49935.71402
B63: 60 | C63: MMF060 | D63: عداد ضغط زيت 12 فولت - VDO | E63: 1 | F63: 486.879689 | G63: 486.879689 | H63: 50422.59371
B64: 61 | C64: MMF061 | D64: مبين دينامو بقاعدة لمبة سفايا بدون كعب | E64: 3 | F64: 13.34010031 | G64: 40.02030094 | H64: 50462.61401
B65: 62 | C65: MMF062 | D65: علبة لمبه سفايا 12 فولت 1.2 وات بدون كعب W2X4- 6D | E65: 1 | F65: 21.79565076 | G65: 21.79565076 | H65: 50484.40966
B66: 63 | C66: MMF063 | G66: 0 | H66: 50484.40966
B67: 64 | C67: MMF064 | D67: سولار | E67: 4209 | F67: 6.8925 | G67: 29010.5325 | H67: 79494.94216
B68: 65 | C68: MMF065 | D68: Total Grease Multis EP 3 - Gallon 15 Kgm - بستلة شحم توتال مالتيز 15 كجم | E68: 1 | F68: 1051.470223 | G68: 1051.470223 | H68: 80546.41238
B69: 66 | C69: MMF066 | D69: صفيحة شحم كالسيومي اخضر وزن 8 كيلو جرام | E69: 6 | F69: 109.999968 | G69: 659.999808 | H69: 81206.41219
B70: 67 | C70: MMF067 | D70: زيت موتور 7400 -Engine oil 7400-15W40 | E70: 427 | F70: 40.2579253 | G70: =+E70*F70 -> 17190.1341 | H70: 98396.54629
B71: 68 | C71: MMF068 | D71: زيت موتور Rubia S - SAE- 50 | E71: 185 | F71: 31.6088906 | G71: 5847.64476 | H71: =+H70+G71 -> 104244.1911
B72: 69 | C72: MMF069 | D72: زيت تروس Gear Oil Valvoline G X 80W-90 | E72: 205 | F72: 32.68291517 | G72: 6699.997609 | H72: 110944.1887
B73: 70 | C73: MMF070 | D73: زيت هيدروليك Azolla ZS - 68 | E73: 433 | F73: 30.77583448 | G73: 13325.93633 | H73: 124270.125
B74: 71 | C74: MMF071 | D74: زيت ترانسميشن ATF - Fluid transmission IID | E74: 326 | F74: 45.47174497 | G74: 14823.78886 | H74: 139093.9139
B75: 72 | C75: MMF072 | G75: 0 | H75: 139093.9139
B76: 73 | C76: MMF073 | D76: Rexroth Pilot Air Valve R-431004994 - P-059331-00000 | E76: 1 | F76: 1856.86 | G76: 1856.86 | H76: 140950.7739
B77: 74 | C77: MMF074 | D77: Air Compressor GM 2 Stage 1 Cyl | E77: 1 | F77: 1791.8005 | G77: 1791.8005 | H77: 142742.5744
B78: 75 | C78: MMF075 | D78: Air Compressor Mercedes 2 Cyl 1 Stage mp2 | E78: 1 | F78: 1550 | G78: 1550 | H78: 144292.5744
B79: 76 | C79: MMF076 | D79: وصلة سريعة 1/4" - Steel Quick connect couplings, Both male & Female, size 1/4",pressure 35 Mpa, thread 1/4" NPT | E79: 1 | F79: 142.5 | G79: 142.5 | H79: 144435.0744
B80: 77 | C80: MMF077 | D80: Air Filter B105006 - AF 19037-PA 2820 | E80: 4 | F80: 1711.302284 | G80: 6845.209137 | H80: 151280.2835
B81: 78 | C81: MMF078 | D81: طبق فرامل مقاس 30 - طاقية فرامل مقاس 30 - diaphragm type 30 | E81: 1 | F81: 0 | G81: 0 | H81: 151280.2835
B82: 79 | C82: MMF079 | D82: مارش هواء كاتربيلير - ترس 11 سنه | E82: 1 | F82: 2309.027778 | G82: 2309.027778 | H82: 153589.3113
B83: 80 | C83: MMF080 | D83: كارتة معجون حديد 2×1 | E83: 3 | F83: 10.09477597 | G83: 30.28432792 | H83: 153619.5956
B84: 81 | C84: MMF081 | D84: Fuel Filter FF 185- BF 970 | E84: 2 | F84: 81.72486116 | G84: 163.4497223 | H84: 153783.0453
B85: 82 | C85: MMF082 | D85: Fuel Filter FS1212 | E85: 2 | F85: 0 | G85: 0 | H85: 153783.0453
B86: 83 | C86: MMF083 | D86: Fuel Filter FF5018 -FF5074 -FF 5167-BF 988-WK731 | E86: 2 | F86: 62.94432712 | G86: 125.8886542 | H86: 153908.934
B87: 84 | C87: MMF084 | D87: Fuel Filter BF584-FF 211 | E87: 4 | F87: 68.14145315 | G87: 272.5658126 | H87: 154181.4998
B88: 85 | C88: MMF085 | D88: Fuel FilterFleetguard FF5319 - 1R0749-Baldwin BF7587 | E88: 2 | F88: 675 | G88: 1350 | H88: 155531.4998
B89: 86 | C89: MMF086 | D89: طلمبة تفويل يدوى (رفع زيت) | E89: 1 | F89: 426.95625 | G89: 426.95625 | H89: 155958.456
B90: 87 | C90: MMF087 | D90: Check Valve 1/2 in ports PAI - LCV-4064 | E90: 2 | F90: 624.1909886 | G90: 1248.381977 | H90: 157206.838
B91: 88 | C91: MMF088 | D91: خرطوم هيدروليك قطر 1/4 1" ضغط 3000 ضغط جويطول 4 متر نهايات سويفيل | E91: 1 | F91: 1789.8 | G91: 1789.8 | H91: 158996.638
B92: 89 | C92: MMF089 | D92: خرطوم هيدروليك 7/8 بوصة R2 PSI 3000 | E92: 30 | F92: 171 | G92: 5130 | H92: 164126.638
B93: 90 | C93: MMF090 | D93: خرطوم هيدروليك قطر 7/8 " ضغط 3000 ضغط جوي | E93: 5 | F93: 182.4 | G93: 912 | H93: 165038.638
B94: 91 | C94: MMF091 | D94: خرطوم هيدروليك قطر 3/8 " ضغط 3000 ضغط جوي | E94: 5 | F94: 79.8 | G94: 399 | H94: 165437.638
B95: 92 | C95: MMF092 | D95: oil Filter - LF3333 LF670-B95 | E95: 7 | F95: 179.8982609 | G95: 1259.287826 | H95: 166696.9258
B96: 93 | C96: MMF093 | D96: oil Filter BD7309-LF 9009 | E96: 4 | F96: 370.5 | G96: 1482 | H96: 168178.9258
B97: 94 | C97: MMF094 | D97: oil Filter LF 3349-BT 339-LF 3959 | E97: 4 | F97: 100.4564769 | G97: 401.8259075 | H97: 168580.7517
B98: 95 | C98: MMF095 | D98: oil Filter Mercedes 1502x - OX168 D-LF 3829 -1183130000 -5014064-H012140X- E500 HD 129 | E98: 2 | F98: 147.7589286 | G98: 295.5178571 | H98: 168876.2696
B99: 96 | C99: MMF096 | D99: Oil Filter CAT - IR - 0716 | E99: 1 | F99: 680 | G99: 680 | H99: 169556.2696
B100: 97 | C100: MMF097 | D100: سربنتينة 4 ماسورة نحاس مقاس 60 سم × 60 سم | E100: 1 | F100: 2137.5 | G100: 2137.5 | H100: 171693.7696
B101: 98 | C101: MMF098 | D101: علبة اورنجات بالبوصة | E101: 1 | F101: 100 | G101: 100 | H101: 171793.7696
B102: 99 | C102: MMF099 | D102: علبة اورنجات بالمللى | E102: 1 | F102: 100 | G102: 100 | H102: 171893.7696
B103: 100 | C103: MMF100 | D103: Belt 13*1125 | E103: 1 | F103: 0 | G103: 0 | H103: 171893.7696
B104: 101 | C104: MMF101 | D104: Belt 13*1425 | E104: 2 | F104: 0 | G104: 0 | H104: 171893.7696
B105: 102 | C105: MMF102 | D105: Belt 13*1300 | E105: 3 | F105: 0 | G105: 0 | H105: 171893.7696
B106: 103 | C106: MMF103 | D106: Belt 17*1350 | E106: 4 | F106: 79.8 | G106: 319.2 | H106: 172212.9696
B107: 104 | C107: MMF104 | D107: Belt 13*1500 | E107: 5 | F107: 10.2399998 | G107: 51.199999 | H107: 172264.1696
B108: 105 | C108: MMF105 | D108: Belt 17*1500 | E108: 1 | F108: 0 | G108: 0 | H108: 172264.1696
B109: 106 | C109: MMF106 | D109: Belt 22*1550 | E109: 2 | F109: 0 | G109: 0 | H109: 172264.1696
B110: 107 | C110: MMF107 | D110: سير مشرشر مقاس 13 * 1575 | E110: 1 | F110: 44 | G110: 44 | H110: 172308.1696
B111: 108 | C111: MMF108 | D111: Belt 13*1675 | E111: 5 | F111: 46.8219227 | G111: 234.1096135 | H111: 172542.2792
B112: 109 | C112: MMF109 | D112: Belt 17*1575 | E112: 1 | F112: 0 | G112: 0 | H112: 172542.2792
B113: 110 | C113: MMF110 | D113: Belt 17*1625 | E113: 5 | F113: 55.37142857 | G113: 276.8571429 | H113: 172819.1364
B114: 111 | C114: MMF111 | D114: Belt 17*1100 | E114: 5 | F114: 50.496 | G114: 252.48 | H114: 173071.6164
B115: 112 | C115: MMF112 | D115: Belt 22*1900 | E115: 5 | F115: 147.25 | G115: 736.25 | H115: 173807.8664
B116: 113 | C116: MMF113 | D116: Belt 22*1925 | E116: 4 | F116: 169.632 | G116: 678.528 | H116: 174486.3944
B117: 114 | C117: MMF114 | D117: Belt 8PK1400 | E117: 1 | F117: 0 | G117: 0 | H117: 174486.3944
B118: 115 | C118: MMF115 | D118: Belt 8PK1500 | E118: 1 | F118: 0 | G118: 0 | H118: 174486.3944
B119: 116 | C119: MMF116 | D119: Belt 13*975 | E119: 6 | F119: 30.4 | G119: 182.4 | H119: 174668.7944
B120: 117 | C120: MMF117 | D120: Belt Cummins -8PK 1525 | E120: 5 | F120: 146.3466667 | G120: 731.7333333 | H120: 175400.5277
B121: 118 | C121: MMF118 | D121: Belt Cummins 8pk 1550 | E121: 1 | F121: 0 | G121: 0 | H121: 175400.5277
B122: 119 | C122: MMF119 | D122: Belt Cummins 8pk 1725 | E122: 1 | F122: 0 | G122: 0 | H122: 175400.5277
B123: 120 | C123: MMF120 | D123: Belt 13*1650 | E123: 1 | F123: 29.756667 | G123: 29.756667 | H123: 175430.2844
B124: 121 | C124: MMF121 | D124: Belt 17*1125 | E124: 1 | F124: 68.5 | G124: 68.5 | H124: 175498.7844
B125: 122 | C125: MMF122 | D125: Belt 17*1850 | E125: 3 | F125: 111.15 | G125: 333.45 | H125: 175832.2344
B126: 123 | C126: MMF123 | D126: سير مشرشر مقاس 13 * 1375 | E126: 2 | F126: 0 | G126: 0 | H126: 175832.2344
B127: 124 | C127: MMF124 | D127: Belt - 8PK1690 | E127: 2 | F127: 182.4 | G127: 364.8 | H127: 176197.0344
B128: 125 | C128: MMF125 | D128: كوليه حديد مقاس (25-35) mm | E128: 4 | F128: 4.946130956 | G128: 19.78452383 | H128: 176216.8189
B129: 126 | C129: MMF126 | D129: جنزير 1/4 1 بوصة - 3 صف - HC 100 | E129: 2 | F129: 935.9363208 | G129: 1871.872642 | H129: 178088.6915
B130: 127 | C130: MMF127 | D130: بنز تشحيم مقاس 10 مم عدل | E130: 6 | F130: 2.647687861 | G130: 15.88612717 | H130: 178104.5777
B131: 128 | C131: MMF128 | D131: بنز تشحيم مقاس 6 مم عدل | E131: 5 | F131: 2.018846154 | G131: 10.09423077 | H131: 178114.6719
B132: 129 | C132: MMF129 | D132: بنز تشحيم مقاس 8 مم زاوية | E132: 5 | F132: 3.135 | G132: 15.675 | H132: 178130.3469
B133: 130 | C133: MMF130 | D133: خرطوم 1/2 بوصة طول 30 متر نهايات ذكر * ذكر | E133: 1 | F133: 2622 | G133: 2622 | H133: 180752.3469
B134: 131 | C134: MMF131 | D134: خرطوم سحب 8 بوصة 17 بار مدعم بسلك حلزونى | E134: 1 | F134: 1539 | G134: =+E134*F134 -> 1539 | H134: 182291.3469
B135: 132 | C135: MMF132 | D135: خرطوم 1 بوصة طول 450 سم عدل * عدل R2 | E135: 1 | F135: 889.2 | G135: 889.2 | H135: =+H134+G135 -> 183180.5469
B136: 133 | C136: MMF133 | D136: خرطوم 1 بوصة طول 15 متر بالنهايات | E136: 1 | F136: 1100 | G136: 1100 | H136: 184280.5469
B137: 134 | C137: MMF134 | D137: خرطوم هيدروليك قطر 1 بوصة طول 17 متر ضغط 380 بار نهايات سن ذكر من الطرفين | E137: 4 | F137: 4434.6 | G137: 17738.4 | H137: 202018.9469
B138: 135 | C138: MMF135 | D138: خرطوم كاوتش 1/4 بوصة - 20 بار | E138: 21 | F138: 15.13587951 | G138: 317.8534697 | H138: 202336.8004
B139: 136 | C139: MMF136 | D139: خرطوم كاوتش 3/8 بوصة - 20 بار | E139: 15 | F139: 19.0030581 | G139: 285.0458716 | H139: 202621.8462
B140: 137 | C140: MMF137 | D140: خرطوم 3/4 بوصة طول 230 سم بالنهايات | E140: 4 | F140: 387.6 | G140: 1550.4 | H140: 204172.2462
B141: 138 | C141: MMF138 | D141: مسمار الن 10* 50 مم | E141: 20 | F141: 3.5 | G141: 70 | H141: 204242.2462
B142: 139 | C142: MMF139 | D142: مسمار الن 10× 30 مم | E142: 20 | F142: 2.5 | G142: 50 | H142: 204292.2462
B143: 140 | C143: MMF140 | D143: مسمار الن 6 مم × 20 مم | E143: 40 | F143: 0.5 | G143: 20 | H143: 204312.2462
B144: 141 | C144: MMF141 | D144: مسمار الن 8*16 مم | E144: 20 | F144: 1 | G144: 20 | H144: 204332.2462
B145: 142 | C145: MMF142 | D145: مسمار الن 8 مم*25 مم | E145: 20 | F145: 1.5 | G145: 30 | H145: 204362.2462
B146: 143 | C146: MMF143 | D146: حساس ضغط زيت 5بار | E146: 4 | F146: 475.7453309 | G146: 1902.981323 | H146: 206265.2275
B147: 144 | C147: MMF144 | D147: تيلة بنسة قطر 2 مم طول 50 مم | E147: 8 | F147: 0.5340615209 | G147: 4.272492167 | H147: 206269.5
B148: 145 | C148: MMF145 | D148: تيلة بنسة قطر 3 مم طول 50 مم | E148: 8 | F148: 0.4506669716 | G148: 3.605335773 | H148: 206273.1054
B149: 146 | C149: MMF146 | D149: تيلة بنسة قطر 4 مم طول 50 مم | E149: 8 | F149: 0.4912511091 | G149: 3.930008873 | H149: 206277.0354
B150: 147 | C150: MMF147 | D150: تيلة بنسة قطر 5 مم طول 50 مم | E150: 8 | F150: 0.6366755873 | G150: 5.093404698 | H150: 206282.1288
B151: 148 | C151: MMF148 | D151: تيلة بنسة قطر 6 مم طول 50 مم | E151: 8 | F151: 0.9935236575 | G151: 7.94818926 | H151: 206290.077
B152: 149 | C152: MMF149 | D152: Seal Kit For Union 4 Inch Welded - Fig1502 | E152: 7 | F152: 0 | G152: 0 | H152: 206290.077
B153: 150 | C153: MMF150 | D153: Seal Kit For Union 2 Inch Welded - Fig1502 | E153: 4 | F153: 11.12786885 | G153: 44.51147541 | H153: 206334.5885
B154: 151 | C154: MMF151 | D154: عبوة مزيل صداء 330 مم WD40 | E154: 1 | F154: 57.61333333 | G154: 57.61333333 | H154: 206392.2018
B155: 152 | C155: MMF152 | D155: Wrench 24 Inch Ridgid - PN : 31030 - مفتاح استلسون مقاس 24 بوصة | E155: 3 | F155: 2290.909091 | G155: 6872.727273 | H155: 213264.9291
B156: 153 | C156: MMF153 | D156: Wrench 48 Inch Ridgid - PN : 31040 - مفتاح استلسون مقاس 48 بوصة | E156: 1 | F156: 8000 | G156: 8000 | H156: 221264.9291
B157: 154 | C157: MMF154 | D157: Water filter WF - 2075 -BW 5075 | E157: 2 | F157: 132.1283722 | G157: 264.2567445 | H157: 221529.1858
B158: 155 | C158: MMF155 | D158: water Pump Cummins - PN : 3802358-p.n:181815 | E158: 1 | F158: 1250 | G158: 1250 | H158: 222779.1858
B159: 156 | C159: MMF156 | D159: مسمار صلب | E159: 57 | F159: 27.99413964 | G159: 1595.66596 | H159: 224374.8518
B160: 157 | C160: MMF157 | D160: علبة لمبة سفايا 24 فولت 1.2 وات بدون كعب W2X4- 6D | E160: 1 | F160: 20.22981077 | G160: 20.22981077 | H160: 224395.0816
B161: 158 | C161: MMF158 | D161: Tire 1000R15 | E161: 2 | F161: 5087.72 | G161: 10175.44 | H161: 234570.5216
B162: 159 | C162: MMF159 | G162: 0 | H162: 234570.5216
B163: 160 | C163: MMF160 | D163: جوانتى قطن محبب | E163: 290 | F163: 10.34559996 | G163: 3000.22399 | H163: 237570.7456
B164: 161 | C164: MMF161 | D164: جوانتى كاوتش مضاد للكيماويات Rubber Glove | E164: 30 | F164: 37.6837093 | G164: 1130.511279 | H164: 238701.2568
B165: 162 | C165: MMF162 | D165: جوانتى حراري - لحام طول 35 سم | E165: 1 | F165: 59.41176471 | G165: 59.41176471 | H165: 238760.6686
B166: 163 | C166: MMF163 | D166: خوذة زرقاء بالداخلى - واقى راس | E166: 4 | F166: 48.74793044 | G166: 194.9917218 | H166: 238955.6603
B167: 164 | C167: MMF164 | D167: بدلة احماض | E167: 4 | F167: 98.8088008 | G167: 395.2352032 | H167: 239350.8955
B168: 165 | C168: MMF165 | D168: سائل كحول 70 % معقم للأيدى - مطهر | E168: 5 | F168: 62.91293951 | G168: 314.5646976 | H168: 239665.4602
B169: 166 | C169: MMF166 | D169: كاشف دخان - smoke alarm -LS - 91 | E169: 2 | F169: 168.1332071 | G169: 336.2664141 | H169: 240001.7266
B170: 167 | C170: MMF167 | D170: 25 LTR Foam Extinguisher on wheel - Hose length 7 MT - طفاية فوم 25 لتر | E170: 1 | F170: 3816 | G170: 3816 | H170: 243817.7266
B171: 168 | C171: MMF168 | D171: Harness Fall Arrest Medium With Belly Belt Lewis -Model : FAH-5-MB - حزام امان بوسط متوسط | E171: 1 | F171: 4911.636 | G171: 4911.636 | H171: 248729.3626
B172: 169 | C172: MMF169 | D172: Wind Cone - قمع تحديد اتجاه الريح | E172: 1 | F172: 71.38596491 | G172: 71.38596491 | H172: 248800.7486
B173: 170 | C173: MMF170 | D173: كارت فحص طفاية الومنيوم 12 سم × 8 سم | E173: 30 | F173: 9.809837008 | G173: 294.2951102 | H173: 249095.0437
B174: 171 | C174: MMF171 | D174: كلامب واير 3مم - 1/8 بوصة | E174: 2 | F174: 2.002703185 | G174: 4.00540637 | H174: 249099.0491
B175: 172 | C175: MMF172 | D175: Bolt Type Anchor Shackle 1 Inch - شيكل مقاس 1 بوصة | E175: 2 | F175: 558.6 | G175: 1117.2 | H175: 250216.2491
B176: 173 | C176: MMF173 | D176: طفاية حريق 25 كجم بودرة | E176: 1 | F176: 9380 | G176: 9380 | H176: 259596.2491
B177: 174 | C177: MMF174 | D177: طفاية حريق 9 كجم بودرة | E177: 2 | F177: 1440 | G177: 2880 | H177: 262476.2491
B178: 175 | C178: MMF175 | D178: طفاية حريق 12 كجم بودرة | E178: 6 | F178: 1730 | G178: 10380 | H178: 272856.2491
B179: 176 | C179: MMF176 | D179: خرطوم حريق 2.5 بوصة طول 30 متر بالنهايات | E179: 1 | F179: 2166 | G179: 2166 | H179: 275022.2491
B180: 177 | C180: MMF177 | D180: استيكر ارشادى مقاس 30 سم * 40 سم | E180: 17 | F180: 3.051219512 | G180: 51.87073171 | H180: 275074.1199
B181: 178 | C181: MMF178 | D181: شداد واير 1 بوصة طول 45سم نهايات بنز من الطرفين | E181: 2 | F181: 855 | G181: 1710 | H181: 276784.1199
B182: 179 | C182: MMF179 | D182: واير 7/8 بوصة طول 1.5متر نهاية تمبل ونهاية غاصة | E182: 1 | F182: 484.5 | G182: 484.5 | H182: 277268.6199
B183: 180 | C183: MMF180 | D183: واير صلب 1/8 بوصة بدون نهايات | E183: 4 | F183: 3 | G183: 12 | H183: 277280.6199
B184: 181 | C184: MMF181 | D184: واير صلب قطر 3/8" بطول 26.5 متر نهايات تمبل من طرف والاخر حر | E184: 1 | F184: 684 | G184: 684 | H184: 277964.6199
B185: 182 | C185: MMF182 | G185: 0 | H185: 277964.6199
B186: 183 | C186: MMF183 | D186: باكو سلك لحام صلب 3.25 مم كود 7018 | E186: 3 | F186: 141.6539136 | G186: 424.9617408 | H186: 278389.5816
B187: 184 | C187: MMF184 | D187: سلك لحام زهر علي البارد قطر 3 مم | E187: 0.25 | F187: 417.7777778 | G187: 104.4444444 | H187: 278494.026
B188: 185 | C188: MMF185 | D188: باكو سلك لحام صلب 2.5 مم - كود 7018 | E188: 9 | F188: 202.1327476 | G188: 1819.194728 | H188: 280313.2208
B189: 186 | C189: MMF186 | D189: سلك لحام كاستولين TP 65 | E189: 0.25 | F189: 1250 | G189: 312.5 | H189: 280625.7208
B190: 187 | C190: MMF187 | D190: اسطوانة قطعية قطر 9 بوصة سمك 3 مم | E190: 15 | F190: 28.05514309 | G190: 420.8271464 | H190: 281046.5479
B191: 188 | C191: MMF188 | D191: اسطوانة جلخ قطر 9 بوصة سمك 6 مم | E191: 3 | F191: 63.44321115 | G191: 190.3296334 | H191: 281236.8776
B192: 189 | C192: MMF189 | D192: بنسة لحام لوارا 800 امبير | E192: 1 | F192: 109.6563175 | G192: 109.6563175 | H192: 281346.5339
B193: 190 | C193: MMF190 | D193: لمبة قطعية | E193: 1 | F193: 1200 | G193: 1200 | H193: 282546.5339
B194: 191 | C194: MMF191 | G194: 0 | H194: 282546.5339
B195: 192 | C195: MMF192 | D195: علبة قلم جاف ازرق | E195: 1 | F195: 18.02291826 | G195: 18.02291826 | H195: 282564.5568
B196: 193 | C196: MMF193 | G196: 0 | H196: 282564.5568
B197: 194 | C197: MMF194 | G197: 0 | H197: 282564.5568
B198: 195 | C198: MMF195 | G198: =+E198*F198 -> 0 | H198: 282564.5568
B199: 196 | C199: MMF196 | G199: 0 | H199: =+H198+G199 -> 282564.5568
B200: 197 | C200: MMF197 | G200: 0 | H200: 282564.5568
B201: 198 | C201: MMF198 | G201: 0 | H201: 282564.5568
... 1142 more rows

Sheet Sheet2
B2: المبيعات
B3: م | C3: الكود | D3: الكمية | E3: الكمية | F3: سعر الوحدة | G3: القيمة | H3: الاجمالى
B4: 1 | C4: MMF001 | D4: جالون دوكو ازرق 4 كيلو كود 2071 | E4: 15 | F4: 156.3876413 | G4: =E4*F4 -> 2345.814619
B5: 2 | G5: =E5*F5 -> 0
B6: 3 | G6: 0
B7: 4 | G7: 0
B8: 5 | G8: 0
B9: 6 | G9: 0
B10: 7 | G10: 0
B11: 8 | G11: 0
B12: 9 | G12: 0
B13: 10 | G13: 0
B14: 11 | G14: 0
B15: 12 | G15: 0
B16: 13 | G16: 0
B17: 14 | G17: 0
B18: 15 | G18: 0
B19: 16 | G19: 0
B20: 17 | G20: 0
B21: 18 | G21: 0
B22: 19 | G22: 0
B23: 20 | G23: 0
B24: 21 | G24: 0
B25: 22 | G25: 0
B26: 23 | G26: 0
B27: 24 | G27: 0
B28: 25 | G28: 0
B29: 26 | G29: 0
B30: 27 | G30: 0
B31: 28 | G31: 0
B32: 29 | G32: 0
B33: 30 | G33: 0
B34: 31 | G34: 0
B35: 32 | G35: 0
B36: 33 | G36: 0
B37: 34 | G37: 0
B38: 35 | G38: 0
B39: 36 | G39: 0
B40: 37 | G40: 0
B41: 38 | G41: 0
B42: 39 | G42: 0
B43: 40 | G43: 0
B44: 41 | G44: 0
B45: 42 | G45: 0
B46: 43 | G46: 0
B47: 44 | G47: 0
B48: 45 | G48: 0
B49: 46 | G49: 0
B50: 47 | G50: 0
B51: 48 | G51: 0
B52: 49 | G52: 0
B53: 50 | G53: 0
B54: 51 | G54: 0
B55: 52 | G55: 0
B56: 53 | G56: 0
B57: 54 | G57: 0
B58: 55 | G58: 0
B59: 56 | G59: 0
B60: 57 | G60: 0
B61: 58 | G61: 0
B62: 59 | G62: 0
B63: 60 | G63: 0
B64: 61 | G64: 0
B65: 62 | G65: 0
B66: 63 | G66: 0
B67: 64 | G67: 0
B68: 65 | G68: 0
B69: 66 | G69: =E69*F69 -> 0
B70: 67 | G70: 0
B71: 68 | G71: 0
B72: 69 | G72: 0
B73: 70 | G73: 0
B74: 71 | G74: 0
B75: 72 | G75: 0
B76: 73 | G76: 0
B77: 74 | G77: 0
B78: 75 | G78: 0
B79: 76 | G79: 0
B80: 77 | G80: 0
B81: 78 | G81: 0
B82: 79 | G82: 0
B83: 80 | G83: 0
B84: 81 | G84: 0
B85: 82 | G85: 0
B86: 83 | G86: 0
B87: 84 | G87: 0
B88: 85 | G88: 0
B89: 86 | G89: 0
B90: 87 | G90: 0
B91: 88 | G91: 0
B92: 89 | G92: 0
B93: 90 | G93: 0
B94: 91 | G94: 0
B95: 92 | G95: 0
B96: 93 | G96: 0
B97: 94 | G97: 0
B98: 95 | G98: 0
B99: 96 | G99: 0
B100: 97 | G100: 0
B101: 98 | G101: 0
B102: 99 | G102: 0
B103: 100 | G103: 0
B104: 101 | G104: 0
B105: 102 | G105: 0
B106: 103 | G106: 0
B107: 104 | G107: 0
B108: 105 | G108: 0
B109: 106 | G109: 0
B110: 107 | G110: 0
B111: 108 | G111: 0
B112: 109 | G112: 0
B113: 110 | G113: 0
B114: 111 | G114: 0
B115: 112 | G115: 0
B116: 113 | G116: 0
B117: 114 | G117: 0
B118: 115 | G118: 0
B119: 116 | G119: 0
B120: 117 | G120: 0
B121: 118 | G121: 0
B122: 119 | G122: 0
B123: 120 | G123: 0
B124: 121 | G124: 0
B125: 122 | G125: 0
B126: 123 | G126: 0
B127: 124 | G127: 0
B128: 125 | G128: 0
B129: 126 | G129: 0
B130: 127 | G130: 0
B131: 128 | G131: 0
B132: 129 | G132: 0
B133: 130 | G133: =E133*F133 -> 0
B134: 131 | G134: 0
B135: 132 | G135: 0
B136: 133 | G136: 0
B137: 134 | G137: 0
B138: 135 | G138: 0
B139: 136 | G139: 0
B140: 137 | G140: 0
B141: 138 | G141: 0
B142: 139 | G142: 0
B143: 140 | G143: 0
B144: 141 | G144: 0
B145: 142 | G145: 0
B146: 143 | G146: 0
B147: 144 | G147: 0
B148: 145 | G148: 0
B149: 146 | G149: 0
B150: 147 | G150: 0
B151: 148 | G151: 0
B152: 149 | G152: 0
B153: 150 | G153: 0
B154: 151 | G154: 0
B155: 152 | G155: 0
B156: 153 | G156: 0
B157: 154 | G157: 0
B158: 155 | G158: 0
B159: 156 | G159: 0
B160: 157 | G160: 0
B161: 158 | G161: 0
B162: 159 | G162: 0
B163: 160 | G163: 0
B164: 161 | G164: 0
B165: 162 | G165: 0
B166: 163 | G166: 0
B167: 164 | G167: 0
B168: 165 | G168: 0
B169: 166 | G169: 0
B170: 167 | G170: 0
B171: 168 | G171: 0
B172: 169 | G172: 0
B173: 170 | G173: 0
B174: 171 | G174: 0
B175: 172 | G175: 0
B176: 173 | G176: 0
B177: 174 | G177: 0
B178: 175 | G178: 0
B179: 176 | G179: 0
B180: 177 | G180: 0
B181: 178 | G181: 0
B182: 179 | G182: 0
B183: 180 | G183: 0
B184: 181 | G184: 0
B185: 182 | G185: 0
B186: 183 | G186: 0
B187: 184 | G187: 0
B188: 185 | G188: 0
B189: 186 | G189: 0
B190: 187 | G190: 0
B191: 188 | G191: 0
B192: 189 | G192: 0
B193: 190 | G193: 0
B194: 191 | G194: 0
B195: 192 | G195: 0
B196: 193 | G196: 0
B197: 194 | G197: =E197*F197 -> 0
B198: 195 | G198: 0
B199: 196 | G199: 0
B200: 197 | G200: 0
B201: 198 | G201: 0
... 1142 more rows
